fUSD/lending_fUSD_20250623
["ID","MTS","AMOUNT","RATE_DAILY","PERIOD"]
[367261057,1750720298065,-490.0,0.00023835,2]
[367261058,1750720298074,-1105.76,0.00023835,2]
[367261059,1750720298084,-490.0,0.00023835,2]
[367261060,1750720298094,-490.0,0.00023835,2]
[367261061,1750720298102,-850.78,0.00023835,2]
[367261062,1750720298111,-490.0,0.00023835,2]
[367261063,1750720298123,-490.0,0.00023835,2]
[367261064,1750720298132,-602.16,0.00023835,2]
[367261065,1750720298141,-490.0,0.00023835,2]
[367261066,1750720298151,-490.0,0.00023835,2]
[367261067,1750720298160,-580.03473076,0.00023835,2]
[367261068,1750720298169,-670.97,0.00023835,2]
[367261069,1750720298178,-1125.48,0.00023835,2]
[367261070,1750720298188,-490.0,0.00023835,2]
[367261071,1750720298197,-1015.98,0.00023835,2]
[367261072,1750720298206,-490.0,0.00023835,2]
[367261073,1750720298215,-896.78,0.00023835,2]
[367261074,1750720298224,-991.79,0.00023835,2]
[367261075,1750720298233,-490.0,0.00023835,2]
[367261076,1750720298243,-617.71,0.00023835,2]
[367261077,1750720298251,-490.0,0.00023835,2]
[367261078,1750720298260,-490.0,0.00023835,2]
[367261079,1750720298270,-663.55,0.00023835,2]
[367261080,1750720298279,-490.0,0.00023835,2]
[367261081,1750720298288,-753.16,0.00023835,2]
[367261082,1750720298297,-1169.56,0.00023835,2]
[367261083,1750720298306,-798.85,0.00023835,2]
[367261084,1750720298316,-816.02,0.00023835,2]
[367261085,1750720298325,-1226.43,0.00023835,2]
[367261086,1750720298334,-1692.03,0.00023835,2]
[367261087,1750720298343,-490.0,0.00023835,2]
[367261088,1750720298352,-743.41,0.00023835,2]
[367261089,1750720298361,-490.0,0.00023835,2]
[367261090,1750720298371,-490.0,0.00023835,2]
[367261091,1750720298380,-490.0,0.00023835,2]
[367261092,1750720298389,-1035.5,0.00023835,2]
[367261093,1750720298399,-1428.24,0.00023835,2]
[367261094,1750720298410,-578.07,0.00023835,2]
[367261095,1750720298422,-490.0,0.00023835,2]
[367261096,1750720298434,-490.0,0.00023835,2]
[367261097,1750720298445,-1560.27,0.00023835,2]
[367261098,1750720298455,-490.0,0.00023835,2]
[367261099,1750720298464,-490.0,0.00023835,2]
[367261100,1750720298474,-1138.31,0.00023835,2]
[367261101,1750720298484,-490.0,0.00023835,2]
[367261102,1750720298494,-490.0,0.00023835,2]
[367261103,1750720298503,-490.0,0.00023835,2]
[367261104,1750720298513,-490.0,0.00023835,2]
[367261105,1750720298523,-610.23,0.00023835,2]
[367261106,1750720298533,-1540.72,0.00023835,2]
[367261107,1750720298543,-490.0,0.00023835,2]
[367261108,1750720298554,-956.42,0.00023835,2]
[367261109,1750720298565,-490.0,0.00023835,2]
[367261110,1750720298574,-490.0,0.00023835,2]
[367261111,1750720298584,-755.88,0.00023835,2]
[367261112,1750720298595,-490.0,0.00023835,2]
[367261113,1750720298607,-510.44,0.00023835,2]
[367261114,1750720298619,-507.61889356,0.00023835,2]
[367261115,1750720298629,-490.0,0.00023835,2]
[367261116,1750720298639,-643.85,0.00023835,2]
[367261117,1750720298650,-599.74,0.00023835,2]
[367261118,1750720298661,-490.0,0.00023835,2]
[367261119,1750720298671,-710.51,0.00023835,2]
[367261120,1750720298679,-490.0,0.00023835,2]
[367261121,1750720298688,-490.0,0.00023835,2]
[367261122,1750720298699,-749.42,0.00023835,2]
[367261123,1750720298710,-490.0,0.00023835,2]
[367261124,1750720298721,-490.0,0.00023835,2]
[367261125,1750720298733,-917.23,0.00023835,2]
[367261126,1750720298743,-490.0,0.00023835,2]
[367261127,1750720298752,-599.32,0.00023835,2]
[367261128,1750720298763,-720.89,0.00023835,2]
[367261129,1750720298772,-664.28,0.00023835,2]
[367261130,1750720298783,-1380.1,0.00023835,2]
[367261131,1750720298794,-490.0,0.00023835,2]
[367261132,1750720298804,-912.94,0.00023835,2]
[367261133,1750720298814,-490.0,0.00023835,2]
[367261134,1750720298824,-490.0,0.00023835,2]
[367261135,1750720298834,-583.16,0.00023835,2]
[367261136,1750720298844,-1214.44,0.00023835,2]
[367261137,1750720298853,-490.0,0.00023835,2]
[367261138,1750720298863,-490.0,0.00023835,2]
[367261139,1750720298873,-1030.72,0.00023835,2]
[367261140,1750720298883,-602.99,0.00023835,2]
[367261141,1750720298891,-490.0,0.00023835,2]
[367261142,1750720298902,-592.75,0.00023835,2]
[367261143,1750720298911,-917.93,0.00023835,2]
[367261144,1750720298923,-940.21,0.00023835,2]
[367261145,1750720298932,-490.0,0.00023835,2]
[367261146,1750720298942,-1267.09,0.00023835,2]
[367261147,1750720298953,-490.0,0.00023835,2]
[367261148,1750720298963,-490.0,0.00023835,2]
[367261149,1750720298973,-761.58,0.00023835,2]
[367261150,1750720298983,-490.0,0.00023835,2]
[367261151,1750720298994,-613.73,0.00023835,2]
[367261152,1750720299004,-1017.08,0.00023835,2]
[367261153,1750720299014,-490.0,0.00023835,2]
[367261154,1750720299024,-694.19,0.00023835,2]
[367261155,1750720299035,-490.0,0.00023835,2]
[367261156,1750720299045,-897.84,0.00023835,2]
[367261157,1750720299055,-982.43,0.00023835,2]
[367261158,1750720299065,-490.0,0.00023835,2]
[367261159,1750720299075,-490.0,0.00023835,2]
[367261160,1750720299084,-760.55,0.00023835,2]
[367261161,1750720299094,-490.0,0.00023835,2]
[367261162,1750720299104,-1819.88,0.00023835,2]
[367261163,1750720299114,-490.0,0.00023835,2]
[367261164,1750720299123,-669.64,0.00023835,2]
[367261165,1750720299133,-490.0,0.00023835,2]
[367261166,1750720299142,-490.0,0.00023835,2]
[367261167,1750720299151,-644.61,0.00023835,2]
[367261168,1750720299161,-490.0,0.00023835,2]
[367261169,1750720299174,-490.0,0.00023835,2]
[367261170,1750720299184,-1824.55,0.00023835,2]
[367261171,1750720299194,-963.57,0.00023835,2]
[367261172,1750720299203,-536.46,0.00023835,2]
[367261173,1750720299214,-490.0,0.00023835,2]
[367261174,1750720299224,-490.0,0.00023835,2]
[367261175,1750720299234,-2293.31,0.00023835,2]
[367261176,1750720299244,-490.0,0.00023835,2]
[367261177,1750720299253,-1489.68,0.00023835,2]
[367261178,1750720299263,-646.41,0.00023835,2]
[367261179,1750720299273,-2805.91,0.00023835,2]
[367261180,1750720299283,-1394.63,0.00023835,2]
[367261181,1750720299293,-2616.36,0.00023835,2]
[367261182,1750720299303,-490.0,0.00023835,2]
[367261183,1750720299313,-638.23,0.00023835,2]
[367261184,1750720299324,-497.04,0.00023835,2]
[367261185,1750720299333,-831.27,0.00023835,2]
[367261186,1750720299343,-769.28,0.00023835,2]
[367261187,1750720299352,-3452.29,0.00023835,2]
[367261188,1750720299362,-581.2,0.00023835,2]
[367261189,1750720299371,-9399.59,0.00023835,2]
[367261190,1750720299381,-710.04,0.00023835,2]
[367261191,1750720299390,-1061.59,0.00023835,2]
[367261192,1750720299399,-490.0,0.00023835,2]
[367261193,1750720299409,-490.0,0.00023835,2]
[367261194,1750720299421,-1026.38,0.00023835,2]
[367261195,1750720299431,-947.34,0.00023835,2]
[367261196,1750720299440,-726.73,0.00023835,2]
[367261197,1750720299450,-1184.26,0.00023835,2]
[367261198,1750720299459,-1802.18,0.00023835,2]
[367261199,1750720299469,-792.98,0.00023835,2]
[367261200,1750720299478,-1150.8,0.00023835,2]
[367261201,1750720299487,-930.74,0.00023835,2]
[367261202,1750720299497,-605.1,0.00023835,2]
[367261203,1750720299507,-863.73,0.00023835,2]
[367261204,1750720299517,-4136.86,0.00023835,2]
[367261205,1750720299527,-633.10928721,0.00023835,2]
[367261206,1750720299538,-538.91,0.00023835,2]
[367261207,1750720299548,-657.58,0.00023835,2]
[367261208,1750720299558,-2102.05,0.00023835,2]
[367261209,1750720299568,-914.31,0.00023835,2]
[367261210,1750720299578,-870.44,0.00023835,2]
[367261211,1750720299588,-490.0,0.00023835,2]
[367261212,1750720299598,-2161.05,0.00023835,2]
[367261213,1750720299608,-598.29,0.00023835,2]
[367261214,1750720299619,-1160.51,0.00023835,2]
[367261215,1750720299629,-1075.55,0.00023835,2]
[367261216,1750720299639,-4925.64,0.00023835,2]
[367261217,1750720299650,-5318.79,0.00023835,2]
[367261218,1750720299660,-690.98,0.00023835,2]
[367261219,1750720299672,-2160.42,0.00023835,2]
[367261220,1750720299683,-582.65,0.00023835,2]
[367261221,1750720299693,-490.0,0.00023835,2]
[367261222,1750720299703,-596.44,0.00023835,2]
[367261223,1750720299713,-2330.86,0.00023835,2]
[367261224,1750720299723,-1061.28,0.00023835,2]
[367261225,1750720299733,-3640.93,0.00023835,2]
[367261226,1750720299743,-713.85,0.00023835,2]
[367261227,1750720299753,-490.0,0.00023835,2]
[367261228,1750720299763,-546.51,0.00023835,2]
[367261229,1750720299773,-1131.4,0.00023835,2]
[367261230,1750720299783,-913.07,0.00023835,2]
[367261231,1750720299792,-622.0,0.00023835,2]
[367261232,1750720299802,-888.12,0.00023835,2]
[367261233,1750720299811,-964.98,0.00023835,2]
[367261234,1750720299821,-503.26,0.00023835,2]
[367261235,1750720299831,-654.36,0.00023835,2]
[367261236,1750720299840,-917.79,0.00023835,2]
[367261237,1750720299850,-2848.4,0.00023835,2]
[367261238,1750720299860,-804.65,0.00023835,2]
[367261239,1750720299870,-595.99,0.00023835,2]
[367261240,1750720299880,-1492.92,0.00023835,2]
[367261241,1750720299890,-490.0,0.00023835,2]
[367261242,1750720299900,-1166.2,0.00023835,2]
[367261243,1750720299910,-1703.71,0.00023835,2]
[367261244,1750720299921,-827.46,0.00023835,2]
[367261245,1750720299932,-490.0,0.00023835,2]
[367261246,1750720299943,-1312.94,0.00023835,2]
[367261247,1750720299955,-1989.89,0.00023835,2]
[367261248,1750720299966,-472.6775768,0.00023835,2]
[367261249,1750720299976,-870.99,0.00023835,2]
[367261250,1750720299986,-965.17,0.00023835,2]
[367261251,1750720299997,-637.24,0.00023835,2]
[367261252,1750720300007,-1651.42,0.00023835,2]
[367261253,1750720300017,-635.65,0.00023835,2]
[367261254,1750720300029,-785.95,0.00023835,2]
[367261255,1750720300039,-1518.67,0.00023835,2]
[367261256,1750720300050,-625.98,0.00023835,2]
[367261257,1750720300060,-490.0,0.00023835,2]
[367261258,1750720300070,-3091.78,0.00023835,2]
[367261259,1750720300080,-674.96,0.00023835,2]
[367261260,1750720300090,-1403.62,0.00023835,2]
[367261261,1750720300100,-588.85,0.00023835,2]
[367261262,1750720300111,-792.11,0.00023835,2]
[367261263,1750720300122,-736.24,0.00023835,2]
[367261264,1750720300131,-1521.33,0.00023835,2]
[367261265,1750720300141,-608.22,0.00023835,2]
[367261266,1750720300151,-656.6,0.00023835,2]
[367261267,1750720300161,-490.0,0.00023835,2]
[367261268,1750720300171,-2536.56,0.00023835,2]
[367261269,1750720300180,-552.96,0.00023835,2]
[367261270,1750720300190,-490.0,0.00023835,2]
[367261271,1750720300200,-490.0,0.00023835,2]
[367261272,1750720300209,-490.0,0.00023835,2]
[367261273,1750720300219,-954.36,0.00023835,2]
[367261274,1750720300229,-3653.75,0.00023835,2]
[367261275,1750720300238,-1770.55,0.00023835,2]
[367261276,1750720300248,-490.0,0.00023835,2]
[367261277,1750720300259,-1766.86,0.00023835,2]
[367261278,1750720300269,-6832.89,0.00023835,2]
[367261279,1750720300278,-1012.51,0.00023835,2]
[367261280,1750720300288,-1301.41,0.00023835,2]
[367261281,1750720300298,-700.46,0.00023835,2]
[367261282,1750720300308,-575.02,0.00023835,2]
[367261283,1750720300319,-99267.01,0.00023835,2]
[367261284,1750720300330,-490.0,0.00023835,2]
[367261285,1750720300341,-3999.93,0.00023835,2]
[367261286,1750720300352,-1251.72,0.00023835,2]
[367261287,1750720300362,-490.0,0.00023835,2]
[367261288,1750720300372,-690.99,0.00023835,2]
[367261289,1750720300383,-490.0,0.00023835,2]
[367261290,1750720300394,-1289.5,0.00023835,2]
[367261291,1750720300405,-674.55,0.00023835,2]
[367261292,1750720300414,-892.01,0.00023835,2]
[367261293,1750720300424,-586.68,0.00023835,2]
[367261294,1750720300434,-1186.95,0.00023835,2]
[367261295,1750720300443,-628.08,0.00023835,2]
[367261296,1750720300452,-491.89,0.00023835,2]
[367261297,1750720300462,-1120.03,0.00023835,2]
[367261298,1750720300472,-897.51,0.00023835,2]
[367261299,1750720300482,-1083.77,0.00023835,2]
[367261300,1750720300493,-490.0,0.00023835,2]
[367261301,1750720300503,-641.31,0.00023835,2]
[367261302,1750720300516,-1068.09,0.00023835,2]
[367261303,1750720300526,-1194.36,0.00023835,2]
[367261304,1750720300536,-490.0,0.00023835,2]
[367261305,1750720300547,-767.69,0.00023835,2]
[367261306,1750720300557,-575.13,0.00023835,2]
[367261307,1750720300566,-2490.5,0.00023835,2]
[367261308,1750720300576,-1497.6,0.00023835,2]
[367261309,1750720300586,-566.87,0.00023835,2]
[367261310,1750720300596,-533.37,0.00023835,2]
[367261311,1750720300605,-830.3,0.00023835,2]
[367261312,1750720300615,-1805.1,0.00023835,2]
[367261313,1750720300625,-776.33,0.00023835,2]
[367261314,1750720300636,-811.01,0.00023835,2]
[367261315,1750720300646,-12231.5,0.00023835,2]
[367261316,1750720300656,-895.61,0.00023835,2]
[367261317,1750720300666,-1834.68,0.00023835,2]
[367261318,1750720300676,-604.76,0.00023835,2]
[367261319,1750720300686,-942.76,0.00023835,2]
[367261320,1750720300696,-9723.96,0.00023835,2]
[367261321,1750720300710,-490.0,0.00023835,2]
[367261322,1750720300720,-490.0,0.00023835,2]
[367261323,1750720300730,-3237.93,0.00023835,2]
[367261324,1750720300741,-783.99,0.00023835,2]
[367261325,1750720300752,-4513.59,0.00023835,2]
[367261326,1750720300762,-490.0,0.00023835,2]
[367261327,1750720300772,-1103.03,0.00023835,2]
[367261328,1750720300783,-535.9,0.00023835,2]
[367261329,1750720300793,-490.0,0.00023835,2]
[367261330,1750720300803,-1066.43,0.00023835,2]
[367261331,1750720300812,-490.0,0.00023835,2]
[367261332,1750720300823,-907.6,0.00023835,2]
[367261333,1750720300835,-947.45,0.00023835,2]
[367261334,1750720300845,-1319.89,0.00023835,2]
[367261335,1750720300856,-1324.93,0.00023835,2]
[367261336,1750720300867,-490.0,0.00023835,2]
[367261337,1750720300877,-4371.79,0.00023835,2]
[367261338,1750720300887,-1113.07,0.00023835,2]
[367261339,1750720300897,-490.0,0.00023835,2]
[367261340,1750720300908,-744.09,0.00023835,2]
[367261341,1750720300919,-630.35,0.00023835,2]
[367261342,1750720300930,-490.0,0.00023835,2]
[367261343,1750720300940,-883.29,0.00023835,2]
[367261344,1750720300954,-898.49,0.00023835,2]
[367261345,1750720300964,-994.28,0.00023835,2]
[367261346,1750720300975,-1761.89,0.00023835,2]
[367261347,1750720300985,-3421.79,0.00023835,2]
[367261348,1750720300995,-2038.68,0.00023835,2]
[367261349,1750720301006,-943.38,0.00023835,2]
[367261350,1750720301016,-490.0,0.00023835,2]
[367261351,1750720301027,-490.0,0.00023835,2]
[367261352,1750720301038,-2547.54,0.00023835,2]
[367261353,1750720301048,-490.0,0.00023835,2]
[367261354,1750720301058,-1646.59,0.00023835,2]
[367261355,1750720301069,-646.88,0.00023835,2]
[367261356,1750720301079,-977.81,0.00023835,2]
[367261357,1750720301090,-705.0,0.00023835,2]
[367261358,1750720301100,-784.56,0.00023835,2]
[367261359,1750720301110,-571.39,0.00023835,2]
[367261360,1750720301120,-1044.99,0.00023835,2]
[367261361,1750720301130,-707.98,0.00023835,2]
[367261362,1750720301140,-258.30451825,0.00023835,2]
[367261363,1750720301150,-758.21,0.00023835,2]
[367261364,1750720301160,-490.0,0.00023835,2]
[367261365,1750720301171,-24749.35,0.00023835,2]
[367261366,1750720301384,-490.0,0.00023835,2]
[367261367,1750720301394,-2686.176655,0.00023835,2]
[367261368,1750720301403,-644.07,0.00023835,2]
[367261369,1750720301414,-961.66,0.00023835,2]
[367261370,1750720301424,-548.09,0.00023835,2]
[367261371,1750720301433,-490.0,0.00023835,2]
[367261372,1750720301442,-1807.84,0.00023835,2]
[367261373,1750720301452,-1049.93,0.00023835,2]
[367261374,1750720301462,-490.0,0.00023835,2]
[367261375,1750720301471,-1031.44,0.00023835,2]
[367261376,1750720301481,-490.0,0.00023835,2]
[367261377,1750720301491,-719.14,0.00023835,2]
[367261378,1750720301500,-505.77,0.00023835,2]
[367261379,1750720301510,-905.31,0.00023835,2]
[367261380,1750720301520,-735.92,0.00023835,2]
[367261381,1750720301530,-629.84,0.00023835,2]
[367261382,1750720301540,-884.52,0.00023835,2]
[367261383,1750720301550,-652.97,0.00023835,2]
[367261384,1750720301559,-781.37,0.00023835,2]
[367261385,1750720301569,-1808.03,0.00023835,2]
[367261386,1750720301579,-502.82,0.00023836,2]
[367261387,1750720301588,-161.87274242,0.00023863,30]
[367261388,1750720301597,-156.14452724,0.00023872,2]
[367261389,1750720301607,-2487.98,0.000239,2]
[367261390,1750720301616,-8828.66,0.000239,2]
[367261391,1750720301627,-1568.47,0.000239,2]
[367261392,1750720301637,-415.5,0.000239,2]
[367261393,1750720301647,-273.13,0.000239,2]
[367261394,1750720301656,-273.13,0.000239,2]
[367261395,1750720301665,-273.13,0.000239,2]
[367261396,1750720301674,-162.54,0.000239,2]
[367261397,1750720301684,-162.54,0.000239,2]
[367261398,1750720301694,-162.54,0.000239,2]
[367261399,1750720301704,-400.0,0.000239,8]
[367261400,1750720301713,-161.87274242,0.00023945,30]
[367261401,1750720301723,-7710.50293662,0.00023948,2]
[367261402,1750720301733,-635.0,0.00023949,2]
[367261403,1750720301742,-435.24764857,0.00023967,2]
[367261404,1750720301751,-6025.4470615,0.00023984,2]
[367261405,1750720301761,-2000.0,0.00024,4]
[367261406,1750720301770,-2487.98,0.00024,2]
[367261407,1750720301779,-8828.66,0.00024,2]
[367261408,1750720301788,-1568.47,0.00024,2]
[367261409,1750720301798,-1000.0,0.00024,7]
[367261410,1750720301807,-2000.0,0.00024,2]
[367261411,1750720301816,-2000.0,0.00024,2]
[367261412,1750720301826,-2000.0,0.00024,2]
[367261413,1750720301835,-2000.0,0.00024,2]
[367261414,1750720301845,-2000.0,0.00024,2]
[367261415,1750720301854,-273.13,0.00024,2]
[367261416,1750720301864,-2000.0,0.00024,2]
[367261417,1750720301873,-12280.60830238,0.00024,2]
[367261418,1750720301883,-108070.62116216,0.00024,3]
[367261419,1750720301892,-2000.0,0.00024,2]
[367261420,1750720301902,-162.54,0.00024,2]
[367261421,1750720301911,-2000.0,0.00024,2]
[367261422,1750720301922,-2000.0,0.00024,2]
[367261423,1750720301931,-157.96,0.00024,2]
[367261424,1750720301941,-157.96,0.00024,2]
[367261425,1750720301954,-2000.0,0.00024,2]
[367261426,1750720301964,-3006.0375272,0.00024,2]
[367261427,1750720302294,-4021.7372004,0.00024,2]
[367261431,1750720457768,151.04,0.00013699,2]
[367261434,1750720784753,177.05,0.00026024,120]
[367261435,1750720864483,500.0,0.00022,30]
[367261503,1750721431810,-300.0,0.00020687,2]
[367261507,1750721431820,-300.0,0.00020687,2]
[367261509,1750721431830,-1200.0,0.00020687,2]
[367261511,1750721431840,-150.0,0.00020688,2]
[367261513,1750721431850,-150.0,0.00020688,2]
[367261515,1750721431859,-150.0,0.00020688,2]
[367261517,1750721431868,-150.0,0.00020688,2]
[367261518,1750721431878,-150.17599446,0.00020688,2]
[367261519,1750721431888,-150.0,0.00020688,2]
[367261520,1750721431898,-150.0,0.00020688,2]
[367261521,1750721431908,-150.0,0.00020688,2]
[367261522,1750721431917,-150.0,0.00020688,2]
[367261523,1750721431927,-150.0,0.00020688,2]
[367261524,1750721431936,-150.0,0.00020688,2]
[367261525,1750721431945,-150.0,0.00020688,2]
[367261526,1750721431956,-150.0,0.00020688,2]
[367261527,1750721431965,-150.0,0.00020688,2]
[367261528,1750721431974,-666.0,0.00020697,2]
[367261529,1750721431984,-257.16209929,0.00020747,2]
[367261530,1750721431996,-491.23384,0.00020747,2]
[367261531,1750721432019,-77.14406071,0.00020747,2]
[367261532,1750721432029,-177.05,0.00020819,2]
[367261533,1750721432038,-500.0,0.00020854,2]
[367261534,1750721432048,-500.0,0.00020854,2]
[367261535,1750721432057,-439.40905892,0.00020854,2]
[367261536,1750721432068,-416.85355078,0.00020854,2]
[367261537,1750721432079,-143.7373903,0.00020854,2]
[367261538,1750721432089,-163.81,0.00020895,2]
[367261539,1750721432099,-165.51,0.00020986,2]
[367261540,1750721432109,-250.0,0.00021005,2]
[367261541,1750721432118,-1000.0,0.00021045,2]
[367261542,1750721432127,-554.0426097,0.00021054,2]
[367261543,1750721432139,-694.95700675,0.00021054,2]
[367261545,1750721432151,-22651.00038355,0.00021054,2]
[367261547,1750721432160,-150.0,0.00021071,4]
[367261549,1750721432169,-1368.17877012,0.00021089,2]
[367261551,1750721432179,-202.0,0.00021129,2]
[367261553,1750721432189,-151.8,0.00021421,2]
[367261555,1750721432198,-151.8,0.00021434,2]
[367261557,1750721432207,-151.8,0.00021448,2]
[367261559,1750721432216,-150.0,0.00021454,4]
[367261561,1750721432225,-150.0,0.00021454,4]
[367261563,1750721432235,-151.8,0.00021461,2]
[367261565,1750721432245,-151.8,0.00021475,2]
[367261567,1750721432254,-151.8,0.00021488,2]
[367261569,1750721432264,-207.4,0.00021488,2]
[367261571,1750721432273,-151.8,0.00021501,2]
[367261573,1750721432282,-151.8,0.00021515,2]
[367261575,1750721432292,-151.8,0.00021528,2]
[367261578,1750721432301,-655.3437014,0.00021721,2]
[367261580,1750721432310,-7424.62159832,0.00021757,2]
[367261583,1750721432333,-356.39,0.00021757,2]
[367261585,1750721432344,-1582.34629659,0.00021757,2]
[367261588,1750721432356,-636.63210509,0.00021757,2]
[367261590,1750721432365,-238.87108495,0.00021757,2]
[367261675,1750721437813,-761.11891505,0.00021757,2]
[367261677,1750721437829,-150.99,0.00021757,2]
[367261678,1750721437842,-5042.28,0.00021757,2]
[367261679,1750721437854,-228.51299579,0.00021759,2]
[367261680,1750721437865,-151.0,0.00021804,2]
[367261681,1750721437879,-668.65185757,0.00021804,2]
[367261682,1750721437891,-151.0,0.00021804,2]
[367261683,1750721437902,-2551.95290304,0.00021812,2]
[367261687,1750721438147,-1092.03591073,0.00021812,2]
[367261689,1750721438159,-291.77194957,0.00021817,2]
[367261692,1750721438173,-3799.93045815,0.00021817,2]
[367261694,1750721438186,-2223.3192326,0.00021817,2]
[367261697,1750721438199,-26680.0519591,0.00021817,2]
[367261884,1750721439999,-1117.97121355,0.00021817,2]
[367261886,1750721440012,-1857.37858122,0.00021817,2]
[367261902,1750721440160,-263.8,0.00021817,2]
[367261910,1750721440218,-270.62254548,0.00021817,2]
[367261912,1750721440231,-5096.5,0.00021817,2]
[367262202,1750721443152,-457.85291316,0.00021817,2]
[367262204,1750721443166,-903.0,0.00021817,2]
[367262206,1750721443178,-564.56,0.00021817,2]
[367262477,1750721445979,-857.14374395,0.00021817,2]
[367262516,1750721446347,-490.0,0.00021817,2]
[367262518,1750721446359,-1768.95560064,0.00021817,2]
[367262549,1750721492642,101815.69,0.00027397,120]
[367262572,1750722492090,201.0,0.00018129,2]
[367262578,1750722632095,-441.45494102,0.00019249,2]
[367262579,1750722632108,-201.0,0.0001968,4]
[367262580,1750722632117,-300.0,0.00020194,2]
[367262581,1750722632127,-300.0,0.00020194,2]
[367262582,1750722632136,-734.24505899,0.00020194,2]
[367262583,1750722632147,-454.61573283,0.00020194,2]
[367262584,1750722632159,-11.13920818,0.00020194,2]
[367262585,1750722632168,-150.0,0.00020195,2]
[367262586,1750722632178,-150.0,0.00020195,2]
[367262587,1750722632187,-150.0,0.00020195,2]
[367262588,1750722632197,-150.0,0.00020195,2]
[367262589,1750722632206,-251.88577389,0.00020195,2]
[367262590,1750722632216,-219.99319681,0.00020195,2]
[367262591,1750722632225,-98.88176143,0.00020195,2]
[367262592,1750722632239,-51.11823857,0.00020195,2]
[367262593,1750722632248,-150.0,0.00020195,2]
[367262594,1750722632257,-150.0,0.00020195,2]
[367262595,1750722632266,-66.3783291,0.00020195,2]
[367262596,1750722632293,-85.56754975,0.00020195,2]
[367262597,1750722632303,-1080.0,0.00020262,2]
[367262598,1750722632312,-1000.0,0.00020599,2]
[367262599,1750722632322,-666.0,0.00020635,2]
[367262601,1750722632331,-499.16219724,0.00020758,2]
[367262602,1750722632341,-250.0,0.0002084,2]
[367262603,1750722632351,-500.0,0.00020854,2]
[367262604,1750722632361,-900.0,0.00020854,2]
[367262605,1750722632371,-412.77,0.0002093,2]
[367262606,1750722632381,-150.0,0.00020942,4]
[367262607,1750722632390,-150.0,0.00020942,4]
[367262608,1750722632399,-165.51,0.00020998,2]
[367262609,1750722632409,-200.0,0.00021143,2]
[367262610,1750722632419,-201.0,0.00021231,6]
[367262611,1750722632428,-150.0,0.00021316,4]
[367262612,1750722632437,-150.0,0.00021316,4]
[367262613,1750722632447,-150.0,0.00021316,4]
[367262614,1750722632457,-1080.0,0.00021328,2]
[367262615,1750722632467,-774.33169489,0.00021373,2]
[367262616,1750722632476,-2722.13296386,0.00021488,2]
[367262617,1750722632488,-782.18285311,0.00021488,2]
[367262618,1750722632499,-2589.25450389,0.00021488,2]
[367262619,1750722632509,-207.4,0.00021488,2]
[367262620,1750722632518,-706.0,0.00021667,2]
[367262621,1750722632527,-150.0,0.0002169,4]
[367262622,1750722632537,-11163.84941053,0.000217,5]
[367262623,1750722632546,-11163.84941026,0.000217,5]